fUSD/lending_fUSD_20241223
["ID","MTS","AMOUNT","RATE_DAILY","PERIOD"]
[346367976,1734915042192,-500.0,0.00019452,2]
[346367977,1734915042201,-863.4,0.00019452,2]
[346367978,1734915042210,-11845.2,0.00019452,2]
[346367979,1734915042219,-500.0,0.00019452,2]
[346367980,1734915042228,-994.58,0.00019452,2]
[346367981,1734915042237,-1515.68,0.00019452,2]
[346367982,1734915042246,-358.93081372,0.00019452,2]
[346367983,1734915042255,-500.0,0.00019452,2]
[346367984,1734915042264,-500.0,0.00019452,2]
[346367985,1734915042273,-868.12,0.00019452,2]
[346367986,1734915042282,-500.0,0.00019452,2]
[346367987,1734915042291,-1164.5,0.00019452,2]
[346367988,1734915042300,-500.0,0.00019452,2]
[346367989,1734915042309,-1708.2,0.00019452,2]
[346367990,1734915042319,-500.0,0.00019452,2]
[346367991,1734915042328,-1165.16,0.00019452,2]
[346367992,1734915042337,-500.0,0.00019452,2]
[346367993,1734915042346,-1230.29,0.00019452,2]
[346367994,1734915042356,-1040.64,0.00019452,2]
[346367995,1734915042365,-3322.94,0.00019452,2]
[346367996,1734915042374,-920.45,0.00019452,2]
[346367997,1734915042383,-2871.19,0.00019452,2]
[346367998,1734915042392,-757.67,0.00019452,2]
[346367999,1734915042401,-500.0,0.00019452,2]
[346368000,1734915042410,-1376.62,0.00019452,2]
[346368001,1734915042419,-500.0,0.00019452,2]
[346368002,1734915042429,-500.0,0.00019452,2]
[346368003,1734915042437,-500.0,0.00019452,2]
[346368004,1734915042447,-982.11,0.00019452,2]
[346368005,1734915042456,-781.85,0.00019452,2]
[346368006,1734915042465,-857.43,0.00019452,2]
[346368007,1734915042474,-500.0,0.00019452,2]
[346368008,1734915042483,-557.11,0.00019452,2]
[346368009,1734915042493,-1238.96,0.00019452,2]
[346368010,1734915042502,-739.86,0.00019452,2]
[346368011,1734915042512,-500.0,0.00019452,2]
[346368012,1734915042521,-831.81,0.00019452,2]
[346368013,1734915042530,-500.0,0.00019452,2]
[346368014,1734915042539,-500.0,0.00019452,2]
[346368015,1734915042550,-500.0,0.00019452,2]
[346368016,1734915042562,-1348.22,0.00019452,2]
[346368017,1734915042572,-500.0,0.00019452,2]
[346368018,1734915042582,-1377.38,0.00019452,2]
[346368019,1734915042592,-500.0,0.00019452,2]
[346368020,1734915042602,-500.0,0.00019452,2]
[346368021,1734915042612,-2969.95,0.00019452,2]
[346368022,1734915042622,-500.0,0.00019452,2]
[346368023,1734915042632,-500.0,0.00019452,2]
[346368024,1734915042641,-561.05,0.00019452,2]
[346368025,1734915042651,-1027.41,0.00019452,2]
[346368026,1734915042660,-4889.04,0.00019452,2]
[346368027,1734915042669,-423.85180073,0.00019452,2]
[346368028,1734915042679,-2551.46,0.00019452,2]
[346368029,1734915042689,-1789.03,0.00019452,2]
[346368030,1734915042698,-500.0,0.00019452,2]
[346368031,1734915042707,-791.61,0.00019452,2]
[346368032,1734915042717,-2077.81,0.00019452,2]
[346368033,1734915042726,-502.26,0.00019452,2]
[346368034,1734915042735,-500.0,0.00019452,2]
[346368035,1734915042744,-500.0,0.00019452,2]
[346368036,1734915042753,-1123.95,0.00019452,2]
[346368037,1734915042762,-1846.95,0.00019452,2]
[346368038,1734915042771,-2966.2,0.00019452,2]
[346368039,1734915042781,-500.0,0.00019452,2]
[346368040,1734915042790,-1838.94,0.00019452,2]
[346368041,1734915042799,-500.0,0.00019452,2]
[346368042,1734915042815,-11439.05,0.00019452,2]
[346368043,1734915042825,-500.0,0.00019452,2]
[346368044,1734915042834,-897.79,0.00019452,2]
[346368045,1734915042844,-1092.72,0.00019452,2]
[346368046,1734915042853,-500.0,0.00019452,2]
[346368047,1734915042863,-500.0,0.00019452,2]
[346368048,1734915042872,-2080.52,0.00019452,2]
[346368049,1734915042881,-500.0,0.00019452,2]
[346368050,1734915042891,-500.0,0.00019452,2]
[346368051,1734915042900,-2982.82,0.00019452,2]
[346368052,1734915042909,-500.0,0.00019452,2]
[346368053,1734915042918,-500.0,0.00019452,2]
[346368054,1734915042928,-500.0,0.00019452,2]
[346368055,1734915042937,-500.0,0.00019452,2]
[346368056,1734915042947,-605.62,0.00019452,2]
[346368057,1734915042959,-821.87,0.00019452,2]
[346368058,1734915042969,-1203.86,0.00019452,2]
[346368059,1734915042979,-531.08,0.00019452,2]
[346368060,1734915042990,-2992.2,0.00019452,2]
[346368061,1734915042999,-728.2,0.00019452,2]
[346368062,1734915043009,-1475.89,0.00019452,2]
[346368063,1734915043018,-511.57,0.00019452,2]
[346368064,1734915043029,-1804.01,0.00019452,2]
[346368065,1734915043039,-1405.74,0.00019452,2]
[346368066,1734915043048,-500.0,0.00019452,2]
[346368067,1734915043060,-1506.17,0.00019452,2]
[346368068,1734915043069,-500.0,0.00019452,2]
[346368069,1734915043078,-500.0,0.00019452,2]
[346368070,1734915043087,-2823.12,0.00019452,2]
[346368071,1734915043097,-1016.88,0.00019452,2]
[346368072,1734915043106,-500.0,0.00019452,2]
[346368073,1734915043115,-500.0,0.00019452,2]
[346368074,1734915043124,-908.62,0.00019452,2]
[346368075,1734915043133,-6497.27,0.00019452,2]
[346368076,1734915043142,-954.74,0.00019452,2]
[346368077,1734915043152,-628.22,0.00019452,2]
[346368078,1734915043161,-688.99,0.00019452,2]
[346368080,1734915043171,-828.06,0.00019452,2]
[346368082,1734915043180,-500.0,0.00019452,2]
[346368083,1734915043198,-500.0,0.00019452,2]
[346368084,1734915043208,-2033.62,0.00019452,2]
[346368085,1734915043217,-500.0,0.00019452,2]
[346368087,1734915043227,-500.0,0.00019452,2]
[346368089,1734915043235,-500.0,0.00019452,2]
[346368091,1734915043244,-216.68006995,0.00019452,2]
[346368092,1734915043254,-348.72,0.00019452,2]
[346368093,1734915043263,-882.48,0.00019452,2]
[346368094,1734915043272,-500.0,0.00019452,2]
[346368095,1734915043281,-4884.21,0.00019452,2]
[346368096,1734915043290,-514.66,0.00019452,2]
[346368097,1734915043299,-500.0,0.00019452,2]
[346368098,1734915043311,-528.95,0.00019452,2]
[346368099,1734915043320,-504.35243915,0.00019452,2]
[346368101,1734915043331,-500.0,0.00019452,2]
[346368102,1734915043341,-500.0,0.00019452,2]
[346368103,1734915043351,-500.0,0.00019452,2]
[346368104,1734915043362,-500.0,0.00019452,2]
[346368105,1734915043372,-500.0,0.00019452,2]
[346368106,1734915043381,-660.31,0.00019452,2]
[346368107,1734915043393,-1000.0,0.00019452,2]
[346368108,1734915043402,-500.0,0.00019452,2]
[346368109,1734915043411,-500.0,0.00019452,2]
[346368110,1734915043420,-1102.53,0.00019452,2]
[346368111,1734915043430,-500.0,0.00019452,2]
[346368112,1734915043439,-500.0,0.00019452,2]
[346368113,1734915043449,-500.0,0.00019452,2]
[346368114,1734915043458,-500.0,0.00019452,2]
[346368115,1734915043468,-912.72,0.00019452,2]
[346368116,1734915043477,-668.03,0.00019452,2]
[346368117,1734915043486,-500.0,0.00019452,2]
[346368118,1734915043495,-1221.92,0.00019452,2]
[346368119,1734915043505,-500.0,0.00019452,2]
[346368120,1734915043514,-500.0,0.00019452,2]
[346368121,1734915043523,-1031.93,0.00019452,2]
[346368122,1734915043532,-1332.86,0.00019452,2]
[346368123,1734915043542,-300.00233975,0.00019452,2]
[346368124,1734915043552,-200.0,0.00019457,2]
[346368125,1734915043562,-479.19768412,0.00019466,2]
[346368126,1734915043571,-200.0,0.00019467,2]
[346368127,1734915043581,-200.0,0.00019479,2]
[346368128,1734915043590,-479.19768412,0.00019488,2]
[346368129,1734915043600,-479.19768412,0.0001949,2]
[346368130,1734915043609,-479.19768412,0.00019494,2]
[346368131,1734915043618,-167.96831494,0.00019571,2]
[346368132,1734915043627,-1007.8720474,0.000196,2]
[346368133,1734915043636,-1127.83100095,0.000196,2]
[346368134,1734915043645,-164.35430254,0.00019626,2]
[346368135,1734915043654,-2920.0737676,0.00019626,2]
[346368136,1734915043664,-200.8,0.00019677,2]
[346368137,1734915043673,-164.35430254,0.00019681,2]
[346368138,1734915043682,-2920.0737676,0.00019717,2]
[346368139,1734915043691,-500.0,0.00019725,2]
[346368140,1734915043700,-1615.565857,0.00019726,2]
[346368141,1734915043709,-1293.978143,0.00019726,2]
[346368143,1734915043718,-156.154302,0.00019726,2]
[346368145,1734915043728,-500.0,0.00019726,2]
[346368148,1734915043738,-500.0,0.00019726,2]
[346368150,1734915043747,-500.0,0.00019726,2]
[346368152,1734915043756,-500.0,0.00019726,2]
[346368154,1734915043766,-500.0,0.00019726,2]
[346368156,1734915043775,-1221.55,0.00019726,2]
[346368163,1734915043958,-500.0,0.00019726,2]
[346368164,1734915043967,-500.0,0.00019726,2]
[346368165,1734915043976,-500.0,0.00019726,2]
[346368166,1734915043985,-500.0,0.00019726,2]
[346368167,1734915043995,-500.0,0.00019726,2]
[346368168,1734915044003,-500.0,0.00019726,2]
[346368169,1734915044013,-500.0,0.00019726,2]
[346368170,1734915044022,-855.84,0.00019726,2]
[346368171,1734915044031,-500.0,0.00019726,2]
[346368172,1734915044040,-500.0,0.00019726,2]
[346368173,1734915044050,-500.0,0.00019726,2]
[346368174,1734915044060,-500.0,0.00019726,2]
[346368175,1734915044069,-618.98,0.00019726,2]
[346368176,1734915044078,-500.0,0.00019726,2]
[346368177,1734915044087,-500.0,0.00019726,2]
[346368178,1734915044096,-500.0,0.00019726,2]
[346368179,1734915044105,-500.0,0.00019726,2]
[346368180,1734915044114,-500.0,0.00019726,2]
[346368181,1734915044123,-500.0,0.00019726,2]
[346368182,1734915044133,-500.0,0.00019726,2]
[346368183,1734915044142,-381.54,0.00019726,2]
[346368184,1734915044151,-500.0,0.00019726,2]
[346368185,1734915044160,-500.0,0.00019726,2]
[346368186,1734915044169,-500.0,0.00019726,2]
[346368187,1734915044179,-500.0,0.00019726,2]
[346368188,1734915044188,-398.94,0.00019726,2]
[346368189,1734915044197,-500.0,0.00019726,2]
[346368190,1734915044206,-500.0,0.00019726,2]
[346368191,1734915044216,-500.0,0.00019726,2]
[346368192,1734915044226,-500.0,0.00019726,2]
[346368193,1734915044235,-500.0,0.00019726,2]
[346368194,1734915044245,-589.1999986,0.00019726,2]
[346368195,1734915044254,-500.0,0.00019726,2]
[346368196,1734915044263,-500.0,0.00019726,2]
[346368197,1734915044273,-500.0,0.00019726,2]
[346368198,1734915044282,-500.0,0.00019726,2]
[346368199,1734915044292,-500.0,0.00019726,2]
[346368200,1734915044301,-684.09,0.00019726,2]
[346368201,1734915044313,-605.03,0.00019726,2]
[346368202,1734915044324,-500.0,0.00019726,2]
[346368203,1734915044335,-500.0,0.00019726,2]
[346368204,1734915044345,-500.0,0.00019726,2]
[346368205,1734915044354,-500.0,0.00019726,2]
[346368206,1734915044364,-500.0,0.00019726,2]
[346368207,1734915044374,-500.0,0.00019726,2]
[346368208,1734915044383,-560.35,0.00019726,2]
[346368209,1734915044393,-469.4,0.00019726,2]
[346368210,1734915044403,-787.89,0.00019726,2]
[346368211,1734915044412,-496.61,0.00019726,2]
[346368212,1734915044421,-500.0,0.00019726,2]
[346368213,1734915044431,-521.25,0.00019726,2]
[346368214,1734915044440,-500.0,0.00019726,2]
[346368215,1734915044448,-500.0,0.00019726,2]
[346368216,1734915044458,-500.0,0.00019726,2]
[346368217,1734915044467,-500.0,0.00019726,2]
[346368218,1734915044476,-500.0,0.00019726,2]
[346368219,1734915044485,-500.0,0.00019726,2]
[346368220,1734915044494,-500.0,0.00019726,2]
[346368221,1734915044504,-500.0,0.00019726,2]
[346368222,1734915044513,-500.0,0.00019726,2]
[346368223,1734915044524,-891.99,0.00019726,2]
[346368224,1734915044533,-359.22,0.00019726,2]
[346368225,1734915044543,-500.0,0.00019726,2]
[346368226,1734915044552,-500.0,0.00019726,2]
[346368227,1734915044561,-500.0,0.00019726,2]
[346368228,1734915044571,-738.15,0.00019726,2]
[346368229,1734915044580,-500.0,0.00019726,2]
[346368230,1734915044590,-500.0,0.00019726,2]
[346368231,1734915044599,-500.0,0.00019726,2]
[346368232,1734915044609,-790.55,0.00019726,2]
[346368233,1734915044618,-500.0,0.00019726,2]
[346368234,1734915044627,-500.0,0.00019726,2]
[346368235,1734915044637,-500.0,0.00019726,2]
[346368236,1734915044646,-689.47,0.00019726,2]
[346368237,1734915044656,-500.0,0.00019726,2]
[346368238,1734915044665,-500.0,0.00019726,2]
[346368239,1734915044674,-500.0,0.00019726,2]
[346368240,1734915044683,-500.0,0.00019726,2]
[346368241,1734915044693,-548.92,0.00019726,2]
[346368242,1734915044702,-787.62,0.00019726,2]
[346368243,1734915044711,-500.0,0.00019726,2]
[346368244,1734915044720,-500.0,0.00019726,2]
[346368245,1734915044730,-847.99,0.00019726,2]
[346368246,1734915044739,-500.0,0.00019726,2]
[346368247,1734915044748,-500.0,0.00019726,2]
[346368248,1734915044757,-500.0,0.00019726,2]
[346368249,1734915044766,-581.81,0.00019726,2]
[346368250,1734915044775,-500.0,0.00019726,2]
[346368251,1734915044785,-500.0,0.00019726,2]
[346368252,1734915044794,-358.68,0.00019726,2]
[346368253,1734915044804,-500.0,0.00019726,2]
[346368254,1734915044813,-511.84,0.00019726,2]
[346368255,1734915044822,-500.0,0.00019726,2]
[346368256,1734915044831,-500.0,0.00019726,2]
[346368257,1734915044840,-690.54,0.00019726,2]
[346368258,1734915044849,-796.63,0.00019726,2]
[346368259,1734915044858,-500.0,0.00019726,2]
[346368260,1734915044867,-500.0,0.00019726,2]
[346368261,1734915044876,-500.0,0.00019726,2]
[346368262,1734915044885,-500.0,0.00019726,2]
[346368263,1734915044894,-500.0,0.00019726,2]
[346368264,1734915044903,-500.0,0.00019726,2]
[346368265,1734915044912,-500.0,0.00019726,2]
[346368266,1734915044921,-502.04,0.00019726,2]
[346368267,1734915044930,-500.0,0.00019726,2]
[346368268,1734915044939,-500.0,0.00019726,2]
[346368269,1734915044950,-600.95,0.00019726,2]
[346368270,1734915044960,-625.3,0.00019726,2]
[346368271,1734915044969,-652.55,0.00019726,2]
[346368272,1734915044978,-567.15,0.00019726,2]
[346368273,1734915044987,-501.48,0.00019726,2]
[346368274,1734915044997,-500.0,0.00019726,2]
[346368275,1734915045006,-706.97,0.00019726,2]
[346368276,1734915045016,-500.0,0.00019726,2]
[346368277,1734915045026,-500.0,0.00019726,2]
[346368278,1734915045036,-366.65893896,0.00019726,2]
[346368279,1734915045045,-500.0,0.00019726,2]
[346368280,1734915045056,-14906.8321964,0.00019726,2]
[346368281,1734915045065,-500.0,0.00019726,2]
[346368282,1734915045074,-180.83,0.00019726,2]
[346368283,1734915045083,-500.0,0.00019726,2]
[346368284,1734915045092,-562.07,0.00019726,2]
[346368285,1734915045101,-500.0,0.00019726,2]
[346368286,1734915045111,-500.0,0.00019726,2]
[346368287,1734915045121,-500.0,0.00019726,2]
[346368288,1734915045130,-500.0,0.00019726,2]
[346368289,1734915045139,-500.0,0.00019726,2]
[346368290,1734915045148,-500.0,0.00019726,2]
[346368291,1734915045158,-586.24,0.00019726,2]
[346368292,1734915045167,-613.98,0.00019726,2]
[346368293,1734915045176,-296.64,0.00019726,2]
[346368294,1734915045185,-500.0,0.00019726,2]
[346368295,1734915045195,-500.0,0.00019726,2]
[346368296,1734915045204,-731.63,0.00019726,2]
[346368297,1734915045214,-500.0,0.00019726,2]
[346368298,1734915045223,-500.0,0.00019726,2]
[346368299,1734915045232,-500.0,0.00019726,2]
[346368300,1734915045241,-500.0,0.00019726,2]
[346368301,1734915045251,-562.0,0.00019726,2]
[346368302,1734915045260,-500.0,0.00019726,2]
[346368303,1734915045269,-387.56,0.00019726,2]
[346368304,1734915045279,-500.0,0.00019726,2]
[346368305,1734915045288,-295.98,0.00019726,2]
[346368306,1734915045298,-3502.08,0.00019726,2]
[346368307,1734915045309,-851.49,0.00019726,2]
[346368308,1734915045319,-2772.7,0.00019726,2]
[346368309,1734915045329,-500.0,0.00019726,2]
[346368310,1734915045341,-500.0,0.00019726,2]
[346368311,1734915045350,-500.0,0.00019726,2]
[346368312,1734915045360,-500.0,0.00019726,2]
[346368313,1734915045370,-594.15,0.00019726,2]
[346368314,1734915045379,-767.63,0.00019726,2]
[346368315,1734915045389,-1237.54,0.00019726,2]
[346368316,1734915045399,-869.98,0.00019726,2]
[346368317,1734915045408,-1546.49,0.00019726,2]
[346368318,1734915045418,-1170.35,0.00019726,2]
[346368319,1734915045427,-556.01,0.00019726,2]
[346368320,1734915045437,-1119.19,0.00019726,2]
[346368321,1734915045446,-849.06,0.00019726,2]
[346368322,1734915045455,-2132.95,0.00019726,2]
[346368323,1734915045465,-500.0,0.00019726,2]
[346368324,1734915045474,-1193.18,0.00019726,2]
[346368325,1734915045483,-1367.36,0.00019726,2]
[346368326,1734915045493,-500.0,0.00019726,2]
[346368327,1734915045502,-500.0,0.00019726,2]
[346368328,1734915045512,-617.13,0.00019726,2]
[346368329,1734915045522,-4025.95,0.00019726,2]
[346368330,1734915045531,-809.11,0.00019726,2]
[346368331,1734915045540,-500.0,0.00019726,2]
[346368332,1734915045550,-1202.11,0.00019726,2]
[346368333,1734915045561,-656.32,0.00019726,2]
[346368334,1734915045570,-1176.16,0.00019726,2]
[346368335,1734915045579,-500.0,0.00019726,2]
[346368336,1734915045588,-2232.69,0.00019726,2]
[346368337,1734915045597,-542.0,0.00019726,2]
[346368338,1734915045607,-500.0,0.00019726,2]
[346368339,1734915045616,-1023.09,0.00019726,2]
[346368340,1734915045625,-4838.51,0.00019726,2]
[346368341,1734915045634,-1215.06,0.00019726,2]
[346368342,1734915045643,-500.0,0.00019726,2]
[346368343,1734915045652,-2702.35,0.00019726,2]
[346368344,1734915045662,-550.89,0.00019726,2]
[346368345,1734915045671,-1816.5,0.00019726,2]
[346368346,1734915045680,-500.0,0.00019726,2]
[346368347,1734915045689,-500.0,0.00019726,2]
[346368348,1734915045698,-863.4,0.00019726,2]
[346368349,1734915045707,-11845.2,0.00019726,2]
[346368350,1734915045716,-500.0,0.00019726,2]
[346368351,1734915045725,-994.58,0.00019726,2]
[346368352,1734915045734,-1515.68,0.00019726,2]
[346368353,1734915045743,-500.0,0.00019726,2]
[346368354,1734915045752,-500.0,0.00019726,2]
[346368355,1734915045762,-868.12,0.00019726,2]
[346368356,1734915045771,-500.0,0.00019726,2]
[346368357,1734915045780,-1164.5,0.00019726,2]
[346368358,1734915045789,-500.0,0.00019726,2]
[346368359,1734915045798,-1708.2,0.00019726,2]
[346368360,1734915045808,-500.0,0.00019726,2]
[346368361,1734915045818,-1165.16,0.00019726,2]
[346368362,1734915045828,-500.0,0.00019726,2]
[346368363,1734915045839,-1230.29,0.00019726,2]
[346368364,1734915045848,-1040.64,0.00019726,2]
[346368365,1734915045857,-3322.94,0.00019726,2]
[346368366,1734915045867,-920.45,0.00019726,2]
[346368367,1734915045876,-2871.19,0.00019726,2]
[346368368,1734915045885,-757.67,0.00019726,2]
[346368369,1734915045895,-500.0,0.00019726,2]
[346368370,1734915045904,-1376.62,0.00019726,2]
[346368371,1734915045913,-500.0,0.00019726,2]
[346368372,1734915045923,-500.0,0.00019726,2]
[346368373,1734915045933,-500.0,0.00019726,2]
[346368374,1734915045942,-982.11,0.00019726,2]
[346368375,1734915045955,-781.85,0.00019726,2]
[346368376,1734915045964,-857.43,0.00019726,2]
[346368377,1734915045973,-500.0,0.00019726,2]
[346368378,1734915045983,-557.11,0.00019726,2]
[346368379,1734915045992,-1238.96,0.00019726,2]
[346368380,1734915046001,-739.86,0.00019726,2]
[346368381,1734915046011,-500.0,0.00019726,2]
[346368382,1734915046020,-831.81,0.00019726,2]
[346368383,1734915046029,-500.0,0.00019726,2]
[346368384,1734915046038,-1348.22,0.00019726,2]
[346368385,1734915046048,-500.0,0.00019726,2]
[346368386,1734915046061,-1377.38,0.00019726,2]
[346368387,1734915046070,-500.0,0.00019726,2]
[346368388,1734915046080,-500.0,0.00019726,2]
[346368389,1734915046089,-2969.95,0.00019726,2]
[346368390,1734915046098,-173.93776671,0.00019726,2]
[346368391,1734915046108,-561.05,0.00019726,2]
[346368392,1734915046117,-1027.41,0.00019726,2]
[346368393,1734915046127,-4889.04,0.00019726,2]
[346368394,1734915046136,-2551.46,0.00019726,2]
[346368395,1734915046145,-1789.03,0.00019726,2]
[346368396,1734915046155,-500.0,0.00019726,2]
[346368397,1734915046164,-791.61,0.00019726,2]
[346368399,1734915046174,-2077.81,0.00019726,2]
[346368400,1734915046183,-502.26,0.00019726,2]
[346368401,1734915046193,-1123.95,0.00019726,2]
[346368402,1734915046202,-1846.95,0.00019726,2]
[346368403,1734915046212,-2966.2,0.00019726,2]
[346368404,1734915046222,-500.0,0.00019726,2]
[346368405,1734915046231,-1838.94,0.00019726,2]
[346368406,1734915046242,-500.0,0.00019726,2]
[346368407,1734915046251,-11439.05,0.00019726,2]
[346368408,1734915046263,-500.0,0.00019726,2]
[346368409,1734915046273,-897.79,0.00019726,2]
[346368410,1734915046282,-1092.72,0.00019726,2]
[346368411,1734915046292,-500.0,0.00019726,2]
[346368412,1734915046301,-500.0,0.00019726,2]
[346368413,1734915046314,-2080.52,0.00019726,2]
[346368414,1734915046323,-500.0,0.00019726,2]
[346368415,1734915046334,-500.0,0.00019726,2]
[346368416,1734915046344,-2982.82,0.00019726,2]
[346368417,1734915046353,-500.0,0.00019726,2]
[346368418,1734915046362,-500.0,0.00019726,2]
[346368419,1734915046372,-605.62,0.00019726,2]
[346368420,1734915046382,-821.87,0.00019726,2]
[346368421,1734915046392,-1203.86,0.00019726,2]
[346368422,1734915046402,-531.08,0.00019726,2]
[346368423,1734915046411,-2992.2,0.00019726,2]
[346368424,1734915046421,-728.2,0.00019726,2]
[346368425,1734915046431,-1475.89,0.00019726,2]
[346368426,1734915046440,-511.57,0.00019726,2]
[346368427,1734915046450,-1804.01,0.00019726,2]
[346368428,1734915046459,-1405.74,0.00019726,2]
[346368429,1734915046468,-500.0,0.00019726,2]
[346368430,1734915046478,-1506.17,0.00019726,2]
[346368431,1734915046487,-500.0,0.00019726,2]
[346368432,1734915046497,-500.0,0.00019726,2]
[346368433,1734915046506,-2823.12,0.00019726,2]
[346368434,1734915046516,-1016.88,0.00019726,2]
[346368435,1734915046525,-500.0,0.00019726,2]
[346368436,1734915046535,-500.0,0.00019726,2]
[346368437,1734915046544,-908.62,0.00019726,2]
[346368438,1734915046556,-6497.27,0.00019726,2]
[346368439,1734915046566,-954.74,0.00019726,2]
[346368440,1734915046575,-688.99,0.00019726,2]
[346368441,1734915046584,-828.06,0.00019726,2]
[346368442,1734915046594,-500.0,0.00019726,2]
[346368443,1734915046603,-500.0,0.00019726,2]
[346368444,1734915046613,-2033.62,0.00019726,2]
[346368445,1734915046622,-500.0,0.00019726,2]
[346368446,1734915046632,-500.0,0.00019726,2]
[346368447,1734915046641,-500.0,0.00019726,2]
[346368448,1734915046652,-882.48,0.00019726,2]
[346368449,1734915046661,-4884.21,0.00019726,2]
[346368450,1734915046671,-514.66,0.00019726,2]
[346368451,1734915046680,-528.95,0.00019726,2]
[346368452,1734915046690,-500.0,0.00019726,2]
[346368453,1734915046699,-500.0,0.00019726,2]
[346368454,1734915046709,-500.0,0.00019726,2]
[346368455,1734915046718,-500.0,0.00019726,2]
[346368456,1734915046727,-660.31,0.00019726,2]
[346368457,1734915046736,-1000.0,0.00019726,2]
[346368458,1734915046746,-500.0,0.00019726,2]
[346368459,1734915046755,-1102.53,0.00019726,2]
[346368461,1734915046764,-500.0,0.00019726,2]
[346368463,1734915046774,-500.0,0.00019726,2]
[346368464,1734915046783,-500.0,0.00019726,2]
[346368466,1734915046792,-500.0,0.00019726,2]
[346368468,1734915046801,-912.72,0.00019726,2]
[346368470,1734915046815,-668.03,0.00019726,2]
[346368472,1734915046824,-500.0,0.00019726,2]
[346368473,1734915046834,-1221.92,0.00019726,2]
[346368475,1734915046844,-500.0,0.00019726,2]
[346368477,1734915046854,-500.0,0.00019726,2]
[346368479,1734915046863,-1031.93,0.00019726,2]
[346368481,1734915046872,-1332.86,0.00019726,2]
[346368483,1734915046882,-164.35430254,0.00019736,2]
[346368486,1734915046891,-167.96831494,0.00019736,2]
[346368488,1734915046901,-164.35430254,0.0001979,2]
[346368490,1734915046910,-300.0,0.000198,7]
[346368492,1734915046919,-300.0,0.000198,4]
[346368494,1734915046928,-1000.0,0.000198,2]
[346368496,1734915046938,-250.0,0.000198,2]
[346368498,1734915046950,-2920.0737676,0.00019809,2]
[346368500,1734915046960,-500.0,0.0001984,2]
[346368502,1734915046969,-2010.0,0.0001984,2]
[346368504,1734915046978,-1265.0,0.0001984,2]
[346368506,1734915046987,-200.87,0.0001984,2]
[346368508,1734915046997,-565.0,0.0001984,2]
[346368510,1734915047006,-633.0,0.0001984,2]
[346368512,1734915047015,-1898.0,0.0001984,2]
[346368513,1734915047024,-1256.0,0.0001984,2]
[346368514,1734915047034,-978.644,0.0001984,2]
[346368515,1734915047044,-3770.0,0.0001984,2]
[346368516,1734915047056,-818.0,0.0001984,2]
[346368517,1734915047066,-3682.0,0.0001984,2]
[346368518,1734915047075,-536.0,0.0001984,2]
[346368519,1734915047084,-3886.0,0.0001984,2]
[346368520,1734915047094,-1170.0,0.0001984,2]
[346368521,1734915047103,-150.0,0.0001984,2]
[346368522,1734915047271,-150.0,0.0001984,2]